bitfinex-derivatives/quotes_SOLF0:USTF0_20250714
["timestamp","ask_amount","ask_price","bid_price","bid_amount"]
[1752509835220,3.29,163.76,163.74,3.38]
[1752509835414,186.20256605,163.77,163.74,3.38]
[1752509835620,3.29,163.75,163.74,3.38]
[1752509835814,3.29,163.75,163.74,9.4864]
[1752509836212,3.29,163.75,163.74,6.1064]
[1752509836419,186.20256605,163.77,163.74,3.38]
[1752509836716,186.20256605,163.77,163.72,3.38]
[1752509836920,189.49256605,163.77,163.72,3.38]
[1752509837118,0.04256605,163.77,163.76,9.4857]
[1752509837514,3.29,163.79,163.76,3.38]
[1752509837719,185.7,163.8,163.77,6.105]
[1752509838018,3.29,163.78,163.77,6.105]
[1752509838221,3.29,163.78,163.77,3.38]
[1752509838518,3.29,163.78,163.73,7.66053517]
[1752509838821,185.7,163.8,163.73,7.66053517]
[1752509839023,3.29,163.79,163.72,3.38]
[1752509839515,3.29,163.79,163.66,3.38]
[1752509839715,3.29,163.75,163.66,3.38]
[1752509839921,7.66053517,163.76,163.66,3.38]
[1752509839922,3.29,163.71,163.66,3.38]
[1752509840322,3.29,163.71,163.62,7.66053517]
[1752509840618,3.29,163.71,163.63,3.38]
[1752509840920,3.29,163.71,163.62,7.66053517]
[1752509840921,3.29,163.71,163.67,9.4887]
[1752509841222,3.29,163.71,163.67,6.1087]
[1752509841616,3.29,163.71,163.68,6.1086]
[1752509842011,3.29,163.72,163.68,3.38]
[1752509842322,3.29,163.72,163.64,7.66053517]
[1752509842323,189.69,163.72,163.65,3.38]
[1752509842621,3.29,163.71,163.7,6.1077]
[1752509843219,3.29,163.71,163.68,3.38]
[1752509843220,3.29,163.7,163.69,6.1081]
[1752509843618,186.4,163.72,163.69,3.38]
[1752509843925,3.29,163.71,163.69,3.38]
[1752509844323,3.29,163.71,163.66,7.66053517]
[1752509844324,189.69,163.72,163.71,6.1075]
[1752509844512,186.4,163.72,163.71,9.4875]
[1752509844913,189.69,163.72,163.71,9.4875]
[1752509845115,189.69,163.72,163.71,6.1075]
[1752509845315,186.4,163.72,163.71,9.4875]
[1752509845620,189.69,163.72,163.71,9.4875]
[1752509846021,186.4,163.72,163.67,3.38]
[1752509846219,3.29,163.71,163.67,3.38]
[1752509846525,3.29,163.74,163.71,6.1075]
[1752509846717,3.29,163.73,163.68,3.38]
[1752509846922,3.29,163.72,163.68,3.38]
[1752509847230,186.88,163.74,163.68,3.38]
[1752509847625,186.88,163.74,163.73,6.1068]
[1752509847825,190.17,163.74,163.73,6.1068]
[1752509849331,3.29,163.73,163.72,6.107]
[1752509849533,3.29,163.73,163.68,7.66053517]
[1752509849827,3.29,163.72,163.71,3.38]
[1752509850032,190.17,163.74,163.73,3.38]
[1752509850237,3.29,163.76,163.74,3.38]
[1752509850429,3.29,163.76,163.75,9.486]
[1752509850627,5.03780247,163.77,163.76,3.57]
[1752509850826,5.03780247,163.81,163.76,3.57]
[1752509851032,8.40780247,163.82,163.81,6.1038]
[1752509851231,3.37,163.81,163.79,3.57]
[1752509851532,3.37,163.81,163.8,6.1042]
[1752509852334,3.37,163.82,163.77,3.57]
[1752509852633,3.37,163.81,163.77,3.57]
[1752509852823,3.37,163.81,163.8,9.6742]
[1752509854929,3.37,163.81,163.8,6.1042]
[1752509855933,189.99,163.81,163.8,6.1042]
[1752509856133,189.99,163.81,163.8,9.6742]
[1752509856934,3.37,163.8,163.71,3.57]
[1752509857131,3.37,163.8,163.71,7.66053517]
[1752509857332,3.37,163.8,163.72,3.57]
[1752509857531,6.1042,163.8,163.72,3.57]
[1752509857737,3.37,163.79,163.72,3.57]
[1752509858133,3.37,163.79,163.78,6.1049]
[1752509858337,3.37,163.79,163.76,3.57]
[1752509858537,192.724,163.81,163.77,6.1052]
[1752509858837,3.37,163.78,163.77,6.1052]
[1752509859037,3.37,163.77,163.75,3.57]
[1752509859234,3.37,163.77,163.76,6.1056]
[1752509859432,3.37,163.82,163.76,3.57]
[1752509859638,187.58,163.81,163.78,6.1048]
[1752509859833,187.58,163.81,163.78,9.6748]
[1752509860134,3.37,163.79,163.78,9.6748]
[1752509860331,3.37,163.79,163.78,6.1048]
[1752509860734,3.37,163.8,163.79,6.1044]
[1752509861336,3.37,163.79,163.77,3.57]
[1752509861535,3.37,163.78,163.77,3.57]
[1752509861741,3.37,163.77,163.73,7.66053517]
[1752509861940,3.37,163.77,163.76,6.1053]
[1752509862135,3.37,163.77,163.74,3.57]
[1752509862336,3.37,163.8,163.75,6.1057]
[1752509862841,3.37,163.8,163.75,9.6757]
[1752509863645,3.37,163.8,163.75,3.57]
[1752509863845,3.37,163.8,163.71,7.66053517]
[1752509863846,3.37,163.79,163.77,3.57]
[1752509864263,3.37,163.79,163.78,6.1049]
[1752509864846,3.37,163.79,163.68,7.66053517]
[1752509865037,3.37,163.79,163.75,3.57]
[1752509865438,6.1042,163.8,163.76,9.6754]
[1752509865749,3.37,163.77,163.76,9.6754]
[1752509866343,3.37,163.77,163.76,6.1054]
[1752509867139,3.37,163.77,163.76,9.6754]
[1752509867839,188.2,163.79,163.77,6.1053]
[1752509868043,3.37,163.78,163.77,3.57]
[1752509868446,3.37,163.77,163.75,3.57]
[1752509868946,3.37,163.77,163.76,9.6756]
[1752509869441,3.37,163.82,163.76,3.57]
[1752509869640,3.37,163.82,163.71,12.2147]
[1752509869641,3.37,163.82,163.78,3.57]
[1752509869841,3.37,163.82,163.81,6.1038]
[1752509871238,3.37,163.86,163.81,7.66053517]
[1752509871447,3.37,163.86,163.82,3.57]
[1752509871644,191.91,163.87,163.83,7.66053517]
[1752509871844,191.91,163.87,163.84,3.57]
[1752509872040,191.91,163.87,163.83,7.66053517]
[1752509872242,3.37,163.89,163.86,3.57]
[1752509872444,3.37,163.89,163.88,3.57]
[1752509872748,3.37,163.89,163.88,9.6712]
[1752509873044,3.37,163.89,163.88,3.57]
[1752509873242,194.5007,163.9,163.86,3.57]
[1752509873447,3.37,163.88,163.86,3.57]
[1752509873648,3.37,163.88,163.87,6.1015]
[1752509874239,191.57,163.9,163.89,6.1008]
[1752509874551,188.2,163.9,163.89,9.6708]
[1752509874749,191.57,163.9,163.89,9.6708]
[1752509876745,3.37,163.89,163.87,3.57]
[1752509877044,191.57,163.9,163.85,7.66053517]
[1752509877250,191.57,163.9,163.86,3.57]
[1752509877450,188.2,163.9,163.89,9.6708]
[1752509877746,3.37,163.92,163.88,3.57]
[1752509877950,3.37,163.91,163.9,6.1002]
[1752509878352,3.37,163.91,163.9,9.6702]
[1752509878656,715.5,163.93,163.9,9.6702]
[1752509878657,187.8,163.93,163.9,3.57]
[1752509878948,187.8,163.93,163.92,3.57]
[1752509879154,191.17,163.93,163.92,3.57]
[1752509879352,187.8,163.93,163.9,3.57]
[1752509879654,187.8,163.93,163.83,12.2057]
[1752509879655,191.17,163.93,163.92,6.0997]
[1752509879849,187.8,163.93,163.92,9.6697]
[1752509880354,3.37,163.95,163.94,6.099]
[1752509880647,187.82,163.96,163.95,3.29]
[1752509880853,4.5517525,163.98,163.94,3.29]
[1752509881045,3.49,163.98,163.97,9.3878]
[1752509881753,3.49,163.98,163.97,6.0978]
[1752509881953,3.49,163.98,163.97,9.3878]
[1752509882454,3.49,163.97,163.96,6.0981]
[1752509883162,3.49,163.97,163.96,9.3881]
[1752509883755,191.41,163.99,163.97,3.29]
[1752509884154,3.49,163.99,163.97,3.29]
[1752509884359,3.49,163.98,163.97,3.29]
[1752509884557,6.0971,163.99,163.94,3.29]
[1752509884854,4.55162294,164.0,163.94,3.29]
[1752509885057,187.88,163.99,163.94,3.29]
[1752509885359,4.55162294,164.0,163.99,6.0971]
[1752509885655,3.49,164.0,163.99,6.0971]
[1752509885859,191.23,164.0,163.99,6.0971]
[1752509886251,3.49,164.0,163.99,6.0971]
[1752509886451,3.49,163.99,163.98,9.3875]
[1752509886658,3.49,163.99,163.98,3.29]
[1752509886854,187.68,164.0,163.97,6.0977]
[1752509887057,3.49,163.98,163.92,7.66053517]
[1752509887254,3.49,163.98,163.93,3.29]
[1752509887449,3.49,163.98,163.97,6.0979]
[1752509887654,3.49,163.99,163.97,3.29]
[1752509887957,3.49,163.99,163.98,3.29]
[1752509888150,3.49,163.99,163.98,9.3875]
[1752509888351,187.68,164.0,163.98,3.29]
[1752509888553,191.17,164.0,163.98,3.29]
[1752509888753,191.17,164.0,163.9,7.66053517]
[1752509888754,191.17,164.0,163.96,3.29]
[1752509888959,1.06149341,164.01,163.96,3.29]
[1752509889164,3.49,164.0,163.96,3.29]
[1752509889358,187.68,164.01,163.98,3.29]
[1752509889562,3.49,164.07,164.0,3.29]
[1752509889765,3.49,164.04,163.99,7.66053517]
[1752509889959,188.66123445,164.06,164.03,3.29]
[1752509890265,192.15123445,164.06,164.04,3.29]
[1752509890561,191.09,164.06,164.05,3.29]
[1752509890767,3.49,164.09,164.06,3.29]
[1752509890959,187.62,164.1,164.06,3.29]
[1752509891159,3.49,164.09,164.07,9.3841]
[1752509891370,3.49,164.08,164.07,3.29]
[1752509891659,3.49,164.06,164.05,3.29]
[1752509892465,3.49,164.06,164.02,7.66053517]
[1752509892762,3.358e-05,164.07,164.05,3.29]
[1752509892968,3.358e-05,164.07,163.96,12.1963]
[1752509892969,3.358e-05,164.07,164.06,10.95053517]
[1752509893162,187.92,164.13,164.12,6.0923]
[1752509893363,187.92,164.13,164.12,9.3823]
[1752509893563,191.41,164.13,164.09,10.95053517]
[1752509893768,187.92,164.13,164.1,3.29]
[1752509893969,3.49,164.11,164.09,3.29]
[1752509894159,187.92,164.13,164.09,3.29]
[1752509894160,3.49,164.1,164.09,3.29]
[1752509894365,3.49,164.1,164.09,9.3834]
[1752509894565,3.49,164.1,164.09,6.0934]
[1752509894770,3.49,164.1,164.09,9.3834]
[1752509894966,3.49,164.09,164.08,6.13949323]
[1752509895169,3.49,164.09,164.08,9.42949323]
[1752509895368,187.92,164.13,164.09,6.0933]
[1752509895369,194.012,164.13,164.09,6.0933]
[1752509895671,3.49,164.12,164.09,3.29]
[1752509895868,187.92,164.13,164.08,0.04579323]
[1752509896166,6.0926,164.12,164.08,3.33579323]
[1752509896369,187.92,164.13,164.08,3.33579323]
[1752509896572,3.49,164.12,164.09,3.29]
[1752509896761,3.49,164.1,164.08,3.33579323]
[1752509897467,3.49,164.12,164.08,3.33579323]
[1752509897879,187.92,164.13,164.09,3.29]
[1752509897880,3.49,164.11,164.09,3.29]
[1752509898166,197.502,164.13,164.09,3.29]
[1752509898366,3.49,164.12,164.08,0.04579323]
[1752509898569,3.49,164.12,164.11,3.29]
[1752509898970,3.49,164.12,164.09,3.29]
[1752509899170,3.49,164.11,164.1,3.29]
[1752509899367,3.49,164.12,164.1,3.29]
[1752509899568,3.49,164.12,164.11,3.29]
[1752509899968,3.49,164.12,164.09,6.0933]
[1752509900171,3.49,164.12,164.1,3.29]
[1752509900672,191.41,164.13,164.09,10.95053517]
[1752509900990,191.41,164.13,164.1,3.29]
[1752509901168,187.92,164.13,164.1,3.29]
[1752509901375,191.41,164.13,164.11,3.29]
[1752509901569,191.41,164.13,164.12,3.29]
[1752509902173,187.92,164.13,164.12,3.29]
[1752509902570,191.41,164.13,164.12,3.29]
[1752509902770,3.49,164.12,164.08,3.33579323]
[1752509902967,3.49,164.12,164.09,3.29]
[1752509903273,191.41,164.13,164.12,3.29]
[1752509903472,191.41,164.13,164.08,0.04579323]
[1752509903677,3.49,164.12,164.11,3.29]
[1752509903970,187.92,164.13,164.11,3.29]
[1752509904180,191.41,164.13,164.12,3.29]
[1752509904576,191.41,164.13,164.08,0.04579323]
[1752509904577,3.49,164.12,164.11,3.29]
[1752509905275,3.49,164.12,164.09,6.0931]
[1752509905276,187.92,164.13,164.1,6.0927]
[1752509905479,187.92,164.13,164.11,3.29]
[1752509905670,191.41,164.13,164.12,3.29]
[1752509905980,3.49,164.16,164.11,3.29]
[1752509906475,3.49,164.15,164.13,3.29]
[1752509907281,7.66053517,164.24,164.15,3.29]
[1752509907483,7.66053517,164.24,164.16,3.29]
[1752509907484,3.49,164.18,164.16,3.29]
[1752509907880,3.49,164.19,164.17,3.29]
[1752509908180,3.49,164.2,164.18,3.29]
[1752509908382,3.49,164.21,164.15,3.33175381]
[1752509908682,3.49,164.16,164.15,0.04175381]
[1752509908877,3.49,164.16,164.15,3.33175381]
[1752509910989,3.49,164.16,164.15,0.04175381]
[1752509912180,11.15053517,164.16,164.15,0.04175381]
[1752509912381,17.24133517,164.16,164.15,0.04175381]
[1752509912586,9.5808,164.16,164.15,0.04175381]
[1752509912987,3.49,164.16,164.15,0.04175381]
[1752509913385,194.13,164.16,164.15,0.04175381]
[1752509913579,9.5808,164.16,164.15,0.04175381]
[1752509913781,200.2208,164.16,164.15,0.04175381]
[1752509914683,190.64,164.16,164.15,3.44175381]
[1752509914985,3.51,164.18,164.17,3.4]
[1752509915182,194.09,164.2,164.18,3.4]
[1752509915497,190.58,164.2,164.19,3.4]
[1752509915679,4.57023215,164.22,164.19,3.4]
[1752509915680,3.51,164.21,164.19,3.4]
[1752509915883,1.06023215,164.22,164.15,0.04175381]
[1752509916084,3.51,164.18,164.16,3.4]
[1752509916290,3.51,164.17,164.16,3.4]
[1752509916590,3.51,164.16,164.13,3.4]
[1752509916782,3.51,164.18,164.15,0.04132903]
[1752509916988,11.17053517,164.18,164.15,0.04132903]
[1752509917189,9.6008,164.16,164.15,0.04132903]
[1752509917694,3.51,164.16,164.15,3.44132903]
[1752509917885,3.51,164.16,164.15,0.04132903]
[1752509918388,9.6008,164.16,164.15,0.04132903]
[1752509919286,0.45867097,164.15,164.13,3.4]
[1752509919611,3.51,164.14,164.13,3.4]
[1752509919983,3.51,164.14,164.09,3.4]
[1752509920590,190.36,164.17,164.13,3.4]
[1752509920891,3.51,164.15,164.14,3.4]
[1752509921289,190.36,164.17,164.14,3.4]
[1752509921487,3.51,164.15,164.14,3.4]
[1752509921690,3.51,164.15,164.14,9.4913]
[1752509922194,6.0909,164.16,164.12,3.4]
[1752509922389,6.0909,164.16,164.13,3.4]
[1752509922594,3.51,164.17,164.13,3.4]
[1752509922795,3.51,164.16,164.13,9.4919]
[1752509922993,3.51,164.15,164.13,9.4919]
[1752509923194,3.51,164.15,164.14,3.4]
[1752509923894,3.51,164.15,164.12,6.0921]
[1752509924097,3.51,164.13,164.08,3.4]
[1752509924290,3.51,164.13,164.09,3.4]
[1752509924491,3.51,164.14,164.08,3.4]
[1752509925492,6.0917,164.14,164.1,6.0928]
[1752509925695,3.51,164.12,164.1,9.4928]
[1752509926195,3.51,164.11,164.1,9.4928]
[1752509926494,6.0917,164.14,164.1,9.4928]
[1752509926701,4.67944781,164.16,164.11,6.0924]
[1752509926905,3.51,164.15,164.08,4.67944781]
[1752509927205,3.51,164.15,164.13,3.4]
[1752509927603,3.51,164.2,164.13,4.67944781]
[1752509927807,3.51,164.2,164.15,6.0909]
[1752509927995,189.6,164.21,164.15,6.0909]
[1752509928199,189.6,164.21,164.13,3.4]
[1752509928400,3.51,164.17,164.15,3.4]
[1752509928609,3.51,164.17,164.12,4.67944781]
[1752509928904,3.51,164.17,164.16,3.4]
[1752509929302,3.51,164.17,164.14,9.4913]
[1752509929600,194.27944781,164.21,164.15,3.4]
[1752509929805,3.51,164.16,164.07,3.4]
[1752509929999,3.51,164.16,164.09,3.4]
[1752509930401,3.51,164.16,164.12,3.4]
[1752509930605,4.67944781,164.21,164.12,4.67944781]
[1752509930800,4.67944781,164.21,164.13,3.4]
[1752509930801,3.51,164.19,164.13,3.4]
[1752509931308,3.51,164.16,164.15,3.4]
[1752509931505,3.51,164.19,164.12,3.4]
[1752509931801,3.51,164.15,164.13,3.4]
[1752509932006,3.51,164.19,164.11,3.4]
[1752509932202,3.51,164.18,164.11,3.4]
[1752509932407,9.6002,164.18,164.12,4.67944781]
[1752509932604,9.6002,164.18,164.13,3.4]
[1752509932805,3.51,164.17,164.13,3.4]
[1752509933005,3.51,164.17,164.15,3.4]
[1752509933300,3.51,164.17,164.14,6.0916]
[1752509933301,189.92,164.2,164.07,4.67944781]
[1752509933509,3.51,164.16,164.14,3.4]
[1752509933808,3.51,164.15,164.14,3.4]
[1752509934504,3.51,164.18,164.09,4.67944781]
[1752509934706,3.51,164.18,164.1,3.4]
[1752509934907,6.0909,164.16,164.12,6.0921]
[1752509935109,3.51,164.15,164.14,3.4]
[1752509935706,9.6012,164.15,164.14,3.4]
[1752509935907,3.51,164.14,164.13,3.4]
[1752509936109,3.51,164.16,164.13,3.4]
[1752509936308,3.51,164.15,164.13,3.4]
[1752509936507,3.51,164.15,164.14,3.4]
[1752509936708,3.51,164.15,164.09,4.67944781]
[1752509936911,6.0916,164.14,164.11,3.4]
[1752509937108,3.51,164.13,164.11,3.4]
[1752509937309,3.51,164.13,164.12,3.4]
[1752509937908,3.51,164.15,164.14,3.4]
[1752509938205,3.51,164.15,164.12,3.4]
[1752509938414,9.6012,164.15,164.13,3.4]
[1752509939213,3.51,164.15,164.14,3.4]
[1752509939423,6.71500453,164.19,164.14,6.0916]
[1752509939715,10.22500453,164.19,164.16,3.4]
[1752509939913,6.0901,164.18,164.16,3.4]
[1752509940114,3.51,164.17,164.16,3.4]
[1752509940515,3.35,164.19,164.12,3.49]
[1752509940903,6.0902,164.18,164.12,3.49]
[1752509941229,9.4402,164.18,164.14,6.0913]
[1752509941514,3.35,164.17,164.16,3.49]
[1752509941807,3.35,164.17,164.13,3.49]
[1752509942009,3.35,164.18,164.11,3.49]
[1752509942406,3.35,164.16,164.14,3.49]
[1752509942613,4.67925966,164.17,164.12,3.49]
[1752509942814,6.0918,164.14,164.1,6.093]
[1752509943016,3.35,164.13,164.09,3.49]
[1752509943512,189.22,164.17,164.13,3.49]
[1752509943713,3.35,164.15,164.14,3.49]
[1752509943915,3.35,164.15,164.12,6.0923]
[1752509944113,3.35,164.16,164.13,6.0917]
[1752509944317,3.35,164.16,164.15,3.49]
[1752509946324,195.3105,164.17,164.15,3.49]
[1752509946325,189.22,164.17,164.15,9.5812]
[1752509946622,192.57,164.17,164.13,3.49]
[1752509946818,3.35,164.16,164.14,9.5813]
[1752509947117,3.35,164.15,164.13,3.49]
[1752509947315,3.35,164.15,164.13,9.5819]
[1752509947512,3.35,164.15,164.14,9.62882754]
[1752509947712,189.22,164.17,164.14,6.13865372]
[1752509948016,189.22,164.17,164.1,4.67925966]
[1752509948017,189.22,164.17,164.15,6.13865372]
[1752509948212,189.22,164.17,164.16,6.13865372]
[1752509948419,192.57,164.17,164.16,6.13865372]
[1752509949218,192.57,164.17,164.16,9.62865372]
[1752509949419,6.71500453,164.2,164.17,3.49]
[1752509949718,3.35,164.2,164.19,3.49]
[1752509949919,3.35,164.2,164.19,6.13865372]
[1752509950318,3.35,164.2,164.19,9.62865372]
[1752509950720,3.35,164.2,164.19,6.13865372]
[1752509950925,3.38844276,164.21,164.19,9.62865372]
[1752509951218,3.38844276,164.21,164.2,6.13865372]
[1752509951420,9.47764276,164.21,164.2,6.13865372]
[1752509952627,3.35,164.19,164.14,4.67672853]
[1752509952818,0.03844276,164.21,164.14,4.67672853]
[1752509953135,0.03844276,164.21,164.08,18.98596837]
[1752509953136,1.06023215,164.22,164.21,3.49]
[1752509953319,3.35,164.24,164.22,3.49]
[1752509953520,4.40994152,164.26,164.24,3.49]
[1752509953721,4.40994152,164.26,164.24,9.5776]
[1752509954023,4.40994152,164.26,164.25,3.49]
[1752509954319,4.40994152,164.26,164.2,4.67672853]
[1752509954624,4.40994152,164.26,164.24,9.5776]
[1752509954825,4.40994152,164.26,164.25,3.49]
[1752509955215,1.05994152,164.26,164.25,9.5775]
[1752509955421,192.45,164.29,164.25,4.67672853]
[1752509955726,1.05974785,164.28,164.27,3.49]
[1752509956027,4.40974785,164.28,164.27,3.49]
[1752509956322,4.40974785,164.28,164.25,4.67672853]
[1752509956518,3.35,164.27,164.26,3.49]
[1752509956724,3.35,164.27,164.25,3.49]
[1752509956919,4.44987028,164.28,164.24,3.49]
[1752509957119,1.09987028,164.28,164.26,3.49]
[1752509957325,4.44987028,164.28,164.23,4.67672853]
[1752509957530,4.44987028,164.28,164.25,3.49]
[1752509957820,1.09987028,164.28,164.24,3.49]
[1752509958022,1.09987028,164.28,164.16,9.77152946]
[1752509958023,0.04012243,164.28,164.26,3.49]
[1752509958227,0.04012243,164.28,164.27,14.25342853]
[1752509958422,3.35,164.32,164.27,8.16672853]
[1752509958627,3.35,164.31,164.29,3.49]
[1752509958828,3.35,164.31,164.3,3.49]
[1752509959026,4.40950587,164.33,164.28,3.49]
[1752509959327,4.40950587,164.33,164.32,3.49]
[1752509960123,3.35,164.32,164.31,6.085]
[1752509960322,3.35,164.32,164.31,3.49]
[1752509960627,3.35,164.32,164.29,4.67672853]
[1752509960824,3.35,164.32,164.3,3.49]
[1752509961125,3.35,164.32,164.31,3.49]
[1752509962124,1.05950587,164.33,164.29,10.76262853]
[1752509962125,3.35,164.31,164.3,3.49]
[1752509962929,1.05950587,164.33,164.3,3.49]
[1752509963125,3.35,164.32,164.31,3.49]
[1752509963324,4.40950587,164.33,164.32,3.49]
[1752509963525,4.40950587,164.33,164.29,6.0858]
[1752509963526,3.35,164.32,164.3,3.49]
[1752509963828,1.05950587,164.33,164.3,4.67672853]
[1752509964025,1.05950587,164.33,164.32,9.5749]
[1752509964230,194.4637,164.36,164.3,4.67672853]
[1752509964531,1.05929624,164.35,164.32,3.49]
[1752509964719,0.04110978,164.35,164.34,8.16672853]
[1752509965029,1.05905446,164.39,164.35,3.49]
[1752509965230,3.35,164.38,164.37,3.49]
[1752509965528,3.35,164.38,164.36,10.75992853]
[1752509965830,3.35,164.37,164.36,3.49]
[1752509966033,3.35,164.39,164.37,3.49]
[1752509966524,3.35,164.4,164.37,3.49]
[1752509966827,3.35,164.4,164.36,9.5733]
[1752509967329,9.432,164.4,164.36,3.49]
[1752509967533,4.67672853,164.38,164.35,0.04588859]
[1752509967833,3.35,164.37,164.35,0.04588859]
[1752509968030,191.63,164.36,164.35,0.00032198]
[1752509968224,197.7134,164.36,164.35,0.00032198]
[1752509968427,191.63,164.36,164.35,0.00032198]
[1752509968727,0.49967802,164.35,164.31,6.0852]
[1752509968928,3.35,164.33,164.26,3.49]
[1752509969226,3.35,164.31,164.27,15.86728932]
[1752509969430,3.35,164.31,164.27,9.5765]
[1752509969631,3.35,164.31,164.27,3.49]
[1752509969819,4.67672853,164.33,164.27,3.49]
[1752509970023,3.35,164.29,164.27,3.49]
[1752509970323,3.35,164.29,164.26,3.49]
[1752509970520,3.28,164.3,164.27,3.56]
[1752509970723,3.28,164.29,164.27,3.56]
[1752509971427,0.04626083,164.31,164.27,3.56]
[1752509971636,3.28,164.28,164.27,3.56]
[1752509971822,3.28,164.27,164.25,3.56]
[1752509972131,3.28,164.26,164.17,3.56]
[1752509972327,3.28,164.26,164.23,3.56]
[1752509972527,3.28,164.26,164.24,9.85293477]
[1752509972727,3.28,164.26,164.24,3.56]
[1752509972929,3.28,164.25,164.24,3.56]
[1752509973125,3.28,164.25,164.22,4.67672853]
[1752509973326,3.28,164.25,164.24,3.56]
[1752509973527,3.28,164.25,164.24,6.29423491]
[1752509973738,3.28,164.25,164.21,3.56]
[1752509974034,6.0875,164.25,164.19,3.56]
[1752509974238,3.28,164.23,164.21,3.56]
[1752509974442,3.28,164.22,164.19,3.56]
[1752509974734,4.67672853,164.27,164.2,9.85620945]
[1752509974938,3.28,164.21,164.2,3.56]
[1752509975127,3.28,164.21,164.15,3.56]
[1752509975327,3.28,164.21,164.19,3.56]
[1752509975529,3.28,164.25,164.17,4.67672853]
[1752509975724,3.28,164.25,164.18,9.85721631]
[1752509975933,3.28,164.25,164.19,6.29721631]
[1752509976126,3.28,164.25,164.17,4.67672853]
[1752509976333,3.28,164.25,164.18,6.29820401]
[1752509976631,3.28,164.25,164.19,6.29820401]
[1752509976831,3.28,164.23,164.18,3.56]
[1752509977023,3.28,164.21,164.2,3.56]
[1752509977232,3.28,164.21,164.2,6.29813451]
[1752509978334,206.13,164.29,164.18,3.56]
[1752509978537,3.28,164.24,164.19,6.26125225]
[1752509978732,3.28,164.24,164.18,3.56]
[1752509978939,6.0884,164.23,164.19,6.26125308]
[1752509979131,3.28,164.22,164.18,3.56]
[1752509979435,3.28,164.22,164.19,6.26169322]
[1752509979734,6.0886,164.22,164.18,3.56]
[1752509980030,3.28,164.2,164.19,6.26266894]
[1752509980437,3.28,164.2,164.14,3.56]
[1752509980634,3.28,164.16,164.15,6.26470795]
[1752509980933,23.00672853,164.25,164.1,4.67955123]
[1752509980934,4.67955123,164.19,164.1,4.67955123]
[1752509981136,3.28,164.13,164.11,9.8256959]
[1752509981338,3.28,164.13,164.12,9.8256959]
[1752509981532,3.28,164.13,164.12,3.56]
[1752509982340,3.28,164.16,164.12,9.82683188]
[1752509982538,3.28,164.16,164.12,3.56]
[1752509982738,3.28,164.15,164.13,3.56]
[1752509983139,3.28,164.14,164.13,3.56]